bitfinex-derivatives/quotes_ETHF0:USTF0_20240830
["timestamp","ask_amount","ask_price","bid_price","bid_amount"]
[1725043352429,6.0,2534.4,2534.2,0.40058347]
[1725043352642,9.2078,2534.4,2534.2,0.00592347]
[1725043353227,3.60244,2534.3,2534.2,0.00592347]
[1725043353436,3.2078,2534.3,2534.2,0.00592347]
[1725043353743,13.1534,2534.3,2534.2,0.00592347]
[1725043354329,19.54804,2534.3,2534.2,0.00592347]
[1725043354529,19.1534,2534.3,2534.2,0.00592347]
[1725043354743,13.1534,2534.3,2534.2,0.00592347]
[1725043356332,19.54804,2534.3,2534.2,0.00592347]
[1725043356534,13.54804,2534.3,2534.2,0.00592347]
[1725043356737,18.34175778,2534.3,2532.8,0.3952]
[1725043357036,3.2078,2532.9,2532.5,0.39492]
[1725043357429,3.88150363,2532.9,2532.5,0.39492]
[1725043357735,0.39489,2532.8,2532.4,0.40112347]
[1725043357940,3.2078,2532.6,2532.4,0.40112347]
[1725043358445,3.88150363,2532.6,2532.4,0.40112347]
[1725043359129,3.88150363,2532.6,2532.4,0.00592347]
[1725043359446,3.88150363,2532.6,2532.4,0.40086347]
[1725043360027,3.88150363,2532.6,2532.4,0.00592347]
[1725043360432,3.21372347,2533.0,2532.4,7.16252347]
[1725043360740,3.8874271,2533.0,2532.6,0.3949]
[1725043360941,3.8874271,2533.0,2532.5,0.39491]
[1725043361432,3.8874271,2533.0,2532.6,0.3949]
[1725043361744,0.6796271,2533.0,2532.5,0.39492]
[1725043361933,0.6796271,2533.0,2532.6,0.3949]
[1725043362433,0.6796271,2533.0,2532.4,0.00592347]
[1725043362434,3.2078,2532.8,2532.7,0.39489]
[1725043362940,3.88150363,2532.8,2532.7,0.39489]
[1725043363329,0.00592347,2533.0,2532.9,0.39486]
[1725043364842,0.6796271,2533.0,2532.9,0.39486]
[1725043365140,0.6796271,2533.0,2532.5,4.73]
[1725043365345,0.6796271,2533.0,2532.7,0.39488]
[1725043365532,0.6796271,2533.0,2532.8,0.39486]
[1725043365935,0.6796271,2533.0,2532.9,0.39486]
[1725043366135,0.6796271,2533.0,2532.8,0.39487]
[1725043366538,0.6796271,2533.0,2532.9,0.39486]
[1725043366735,0.00592347,2533.0,2532.9,0.39486]
[1725043367345,0.6796271,2533.0,2532.9,0.39486]
[1725043367847,0.6796271,2533.0,2532.8,0.39486]
[1725043367848,3.8874271,2533.0,2532.8,0.39486]
[1725043368033,3.8874271,2533.0,2532.9,0.39486]
[1725043368236,0.6796271,2533.0,2532.7,0.39488]
[1725043368542,0.6796271,2533.0,2532.4,0.00592347]
[1725043368744,1.0744771,2533.0,2532.4,0.00592347]
[1725043368946,1.0744771,2533.0,2532.5,0.39491]
[1725043368947,3.2078,2532.6,2532.5,0.39491]
[1725043369338,0.39486,2532.9,2532.5,4.34372]
[1725043369639,3.2078,2532.6,2532.4,0.00592347]
[1725043369842,1.0744671,2533.0,2532.6,0.39489]
[1725043370047,1.0744671,2533.0,2532.5,0.39491]
[1725043370237,3.2078,2532.6,2532.5,0.39491]
[1725043370640,0.00592347,2533.0,2532.5,3.9488]
[1725043370938,0.6796271,2533.0,2532.8,0.39487]
[1725043371339,0.6796271,2533.0,2532.9,0.39486]
[1725043371847,0.6796271,2533.0,2532.5,0.98731]
[1725043371848,0.6796271,2533.0,2532.8,0.39486]
[1725043372142,0.6796271,2533.0,2532.9,0.39486]
[1725043372440,0.00592347,2533.0,2532.9,0.39486]
[1725043372644,0.00592347,2533.0,2532.9,4.34286]
[1725043374442,0.00592347,2533.0,2532.9,0.39486]
[1725043374640,0.6796271,2533.0,2532.9,0.39486]
[1725043375137,0.6796271,2533.0,2532.9,0.79006]
[1725043375341,0.6796271,2533.0,2532.9,0.39486]
[1725043375541,0.00592347,2533.0,2532.9,1.77721]
[1725043375740,0.00592347,2533.0,2532.9,4.73806]
[1725043375941,0.00592347,2533.0,2532.9,0.79006]
[1725043376935,0.6796271,2533.0,2532.9,0.79006]
[1725043377135,3.8874271,2533.0,2532.9,0.39486]
[1725043377339,0.6796271,2533.0,2532.8,4.55]
[1725043377546,3.2078,2532.9,2532.8,0.39487]
[1725043377941,3.88150363,2532.9,2532.8,0.39487]
[1725043378138,3.88150363,2532.9,2532.8,4.94487]
[1725043381855,3.88150363,2532.9,2532.4,0.00592347]
[1725043381856,0.98719,2532.8,2532.4,0.00592347]
[1725043382050,0.39495,2532.3,2531.9,0.39501]
[1725043382251,3.2078,2532.2,2531.6,0.3952]
[1725043382547,3.2078,2532.2,2531.0,3.76622477]
[1725043382548,3.2078,2531.9,2531.0,3.76622477]
[1725043382853,3.2078,2531.6,2531.2,4.55]
[1725043383046,3.87558016,2531.6,2531.5,4.94508]
[1725043383946,3.2078,2531.6,2531.5,4.94508]
[1725043384151,0.00592347,2531.7,2531.6,0.39506]
[1725043384451,3.2078,2532.3,2531.6,6.091]
[1725043384753,3.2078,2532.3,2532.1,0.39497]
[1725043384959,3.87558016,2532.3,2531.8,4.55]
[1725043385145,3.87558016,2532.3,2532.2,0.39497]
[1725043385343,3.21372347,2532.3,2532.2,4.94497]
[1725043385550,3.21372347,2532.3,2532.2,8.89377]
[1725043385748,0.00592347,2532.3,2532.2,8.89377]
[1725043385944,0.00592347,2532.3,2532.2,4.55]
[1725043386146,0.00592347,2532.3,2532.2,8.4988]
[1725043386350,0.00592347,2532.3,2532.2,4.55]
[1725043386551,0.00592347,2532.3,2532.2,8.89377]
[1725043386954,0.00592347,2532.3,2532.2,9.8812]
[1725043387151,0.00592347,2532.3,2532.2,8.89377]
[1725043387753,3.2078,2532.8,2532.2,14.4988]
[1725043388052,3.2078,2532.8,2532.7,4.55]
[1725043388249,3.87558016,2532.8,2532.7,4.55]
[1725043388444,3.87558016,2532.8,2532.7,4.94489]
[1725043388642,3.60259,2533.4,2532.9,0.39485]
[1725043388844,3.2078,2533.0,2532.9,0.40077347]
[1725043389056,3.2078,2533.0,2532.9,0.00592347]
[1725043389354,3.87558016,2533.0,2532.9,0.00592347]
[1725043389769,3.87558016,2533.0,2532.9,0.40078347]
[1725043390249,3.2078,2533.0,2532.9,0.00592347]
[1725043390551,3.2078,2533.0,2532.9,0.40077347]
[1725043390945,3.2078,2533.0,2532.9,0.00592347]
[1725043391153,3.87558016,2533.0,2532.9,0.40078347]
[1725043391353,3.2078,2533.0,2532.9,0.00592347]
[1725043391653,3.2078,2533.0,2532.9,0.40078347]
[1725043392044,3.87558016,2533.0,2532.9,0.00592347]
[1725043392246,4.27042016,2533.0,2532.9,0.00592347]
[1725043392449,9.20554016,2533.0,2532.9,0.00592347]
[1725043392755,15.20554016,2533.0,2532.9,0.00592347]
[1725043393143,9.20554016,2533.0,2532.9,0.00592347]
[1725043393347,9.20554016,2533.0,2532.5,4.55]
[1725043393348,0.39491,2532.6,2532.5,4.55]
[1725043393558,3.60271,2532.6,2532.5,4.55]
[1725043393750,7.82438016,2532.6,2532.5,4.55]
[1725043393955,4.61658016,2532.6,2532.5,4.55]
[1725043394242,7.82438016,2532.6,2532.5,4.55]
[1725043394446,7.80688674,2532.6,2532.5,4.94492]
[1725043394645,7.80688674,2532.6,2532.5,4.55]
[1725043394646,0.65028674,2532.6,2532.5,4.55]
[1725043394859,3.2078,2533.0,2532.5,8.4988]
[1725043395154,3.85808674,2533.0,2532.8,4.55]
[1725043395349,3.85808674,2533.0,2532.8,4.94487]
[1725043395745,3.85808674,2533.0,2532.5,4.94492]
[1725043395746,7.80608674,2533.0,2532.5,4.94492]
[1725043396050,3.2078,2532.6,2532.5,4.55]
[1725043396554,7.80688674,2532.6,2532.5,4.55]
[1725043396858,3.85808674,2532.6,2532.5,4.55]
[1725043397054,4.25299674,2532.6,2532.5,4.55]
[1725043397271,0.39493,2532.5,2532.3,0.00592347]
[1725043397560,8.20180674,2532.6,2532.3,0.00592347]
[1725043397854,7.80688674,2532.6,2532.3,0.00592347]
[1725043398053,8.20179674,2532.6,2532.3,0.00592347]
[1725043398454,0.39492,2532.5,2532.3,0.00592347]
[1725043398656,8.20180674,2532.6,2532.3,0.00592347]
[1725043399461,0.39492,2532.5,2532.3,0.00592347]
[1725043399658,0.39494,2532.4,2532.3,0.00592347]
[1725043399953,7.80688674,2532.6,2532.3,0.40086347]
[1725043400150,3.85808674,2532.6,2532.3,0.00592347]
[1725043400354,3.85808674,2532.6,2532.4,0.39864357]
[1725043400559,3.85808674,2532.6,2532.5,0.39862691]
[1725043401257,0.65028674,2532.6,2532.5,0.79354691]
[1725043401459,3.85808674,2532.6,2532.5,0.39862691]
[1725043401653,7.80688674,2532.6,2532.5,0.39862691]
[1725043402552,7.80688674,2532.6,2532.3,0.40087347]
[1725043402553,13.55151,2532.6,2532.3,0.00592347]
[1725043402756,8.75862,2532.5,2532.4,0.39864191]
[1725043402954,9.74593,2532.5,2532.4,0.39864191]
[1725043403156,9.74593,2532.5,2531.9,4.55]
[1725043403157,16.40617199,2532.5,2531.9,4.55]
[1725043403359,6.45737199,2532.5,2532.0,0.39499]
[1725043403664,6.45737199,2532.5,2532.1,0.39855013]
[1725043403665,10.65249199,2532.5,2532.1,0.39855013]
[1725043403854,9.66517199,2532.5,2532.2,4.94855013]
[1725043404053,3.2078,2532.5,2532.4,0.39494]
[1725043404357,7.55152,2532.5,2532.4,0.39855013]
[1725043404558,3.2078,2532.5,2532.4,0.39855013]
[1725043404761,3.2078,2532.5,2532.4,0.39494]
[1725043404955,3.2078,2532.5,2532.4,0.79349022]
[1725043405249,3.2078,2532.5,2532.4,1.41978635]
[1725043405452,3.2078,2532.5,2532.4,5.96978635]
[1725043405656,3.2078,2532.5,2532.4,9.91858635]
[1725043405855,2.38185918,2532.5,2532.4,16.4790238]
[1725043406061,2.38185918,2532.5,2532.4,12.8088238]
[1725043406455,2.38185918,2532.5,2532.4,13.7961738]
[1725043406661,2.3188,2533.2,2532.4,18.8088238]
[1725043406863,3.2078,2533.7,2533.3,0.3948]
[1725043407063,2.55308998,2534.1,2533.3,0.3948]
[1725043407064,3.2078,2534.0,2533.7,0.39473]
[1725043407264,3.2078,2534.0,2533.8,4.94855022]
[1725043407460,2.3188,2534.2,2533.9,0.39855022]
[1725043407659,2.3188,2534.2,2534.0,0.39829238]
[1725043407860,2.3188,2534.2,2533.6,0.62598936]
[1725043407861,3.9464,2534.1,2533.5,4.55]
[1725043408162,0.39469,2534.0,2533.6,0.39833087]
[1725043408371,0.39469,2534.0,2533.7,0.39833087]
[1725043408372,3.2078,2533.8,2533.7,0.39833087]
[1725043408559,7.1542,2533.8,2533.7,0.39833087]
[1725043408761,13.1542,2533.8,2533.5,0.00592347]
[1725043408968,0.39477,2533.5,2533.0,0.6260491]
[1725043409160,3.2078,2533.4,2533.1,0.39841118]
[1725043409362,5.98967199,2533.7,2532.9,4.55]
[1725043409363,5.25027199,2533.7,2532.9,4.55]
[1725043409557,0.39476,2533.6,2533.0,0.39842498]
[1725043409755,0.39476,2533.6,2533.1,0.39842498]
[1725043410069,3.2078,2533.4,2533.2,4.94842498]
[1725043410364,3.2078,2533.5,2533.3,0.39842498]
[1725043410567,4.31117199,2533.9,2533.4,0.39842498]
[1725043410568,3.2078,2533.7,2533.4,0.39842498]
[1725043410771,3.2078,2533.8,2533.5,0.39842498]
[1725043411062,7.1542,2533.8,2533.2,4.55]
[1725043411260,4.34113,2533.8,2533.3,0.39840161]
[1725043411460,3.9472,2533.7,2533.4,0.39840161]
[1725043411664,3.2078,2533.4,2533.2,4.55]
[1725043411971,3.2078,2533.4,2533.3,0.39838306]
[1725043412273,7.155,2533.4,2533.3,0.39838306]
[1725043412466,4.31117199,2533.9,2533.3,0.39838306]
[1725043412467,5.4765,2533.9,2533.3,0.39838306]
[1725043412662,3.2078,2533.5,2533.4,0.39838306]
[1725043413562,2.2687,2533.9,2533.4,0.39834661]
[1725043413769,2.2687,2533.9,2533.6,4.55]
[1725043413770,3.2078,2533.8,2533.6,4.55]
[1725043413957,3.2078,2533.9,2533.7,0.39834661]
[1725043414171,2.3188,2534.2,2533.8,0.39830913]
[1725043414468,2.3188,2534.2,2534.1,4.55]
[1725043414968,0.39468,2534.1,2533.7,4.55]
[1725043415166,3.2078,2533.9,2533.5,3.60256]
[1725043415364,3.2078,2533.9,2533.4,4.55]
[1725043415365,3.2078,2533.6,2533.4,4.55]
[1725043415862,3.2078,2533.6,2533.5,0.39834707]
[1725043416067,3.2078,2533.6,2533.4,4.55]
[1725043416465,3.2078,2533.6,2533.4,4.94477]
[1725043416767,3.2078,2533.6,2533.4,4.55]
[1725043417271,3.60251,2533.9,2533.4,4.55]
[1725043417563,3.2078,2533.6,2533.4,4.55]
[1725043417764,3.2078,2533.6,2533.4,4.94477]
[1725043418967,3.2078,2533.6,2533.4,4.55]
[1725043419168,3.2078,2533.6,2533.1,4.55592]
[1725043419169,4.34197,2533.5,2533.1,4.55592]
[1725043419362,0.39477,2533.5,2533.2,0.39836754]
[1725043419561,3.2078,2533.6,2533.1,4.95075]
[1725043419756,3.60255,2533.6,2533.1,4.95075]
[1725043420064,0.39492,2532.6,2532.3,0.3952]
[1725043420259,0.98715,2532.9,2532.3,0.39495]
[1725043420260,0.3949,2532.7,2532.3,0.39495]
[1725043420466,3.2078,2532.6,2532.5,0.39492]
[1725043420767,3.2078,2532.8,2532.5,4.94816855]
[1725043420970,3.21372347,2532.9,2532.8,0.39487]
[1725043421170,3.21372347,2532.9,2532.7,0.79301109]
[1725043421375,0.39491,2532.6,2532.5,4.55]
[1725043421575,4.20089347,2532.9,2532.5,4.55]
[1725043421871,0.39489,2532.7,2532.5,4.55]
[1725043422073,0.39492,2532.5,2532.4,0.3952]
[1725043422265,0.39492,2532.6,2532.2,4.94496]
[1725043422468,3.2078,2532.6,2532.3,0.39495]
[1725043422661,0.99309347,2532.9,2532.2,4.55]
[1725043422662,3.2078,2532.8,2532.5,4.55]
[1725043423064,3.2078,2532.8,2532.6,0.39813637]
[1725043423267,0.40079347,2532.9,2532.5,4.94491]
[1725043423465,0.40079347,2532.9,2532.5,4.55]
[1725043423466,0.00592347,2532.9,2532.5,4.55]
[1725043423666,0.00592347,2532.9,2532.6,0.39813267]
[1725043423961,3.2078,2532.7,2532.5,4.55]
[1725043424273,3.2078,2532.6,2532.5,4.55]
[1725043424661,0.99309347,2532.9,2532.5,4.55]
[1725043424662,0.39488,2532.8,2532.5,4.55]
[1725043424860,3.2078,2532.6,2532.5,4.55]
[1725043425262,0.3949,2532.7,2532.5,4.55]
[1725043425470,3.2078,2532.6,2532.5,4.55]
[1725043425667,3.2078,2532.6,2532.5,4.94492]
[1725043425867,3.2078,2532.6,2532.5,0.39492]
[1725043426075,3.2078,2532.6,2532.4,0.39817324]
[1725043426274,4.19504,2532.7,2532.2,4.55]
[1725043426570,3.2078,2532.4,2532.2,4.55]
[1725043426772,3.2078,2532.4,2532.0,0.79019]
[1725043426773,0.39495,2532.3,2532.0,0.79019]
[1725043426977,3.60275,2532.4,2532.1,0.79318819]
[1725043427282,3.60275,2532.4,2532.0,0.79019]
[1725043427573,3.60275,2532.4,2532.1,0.39821482]
[1725043427874,0.39496,2532.3,2532.0,0.79019]
[1725043428076,0.39496,2532.3,2532.1,0.39822729]
[1725043428374,0.39497,2532.2,2531.9,4.9452]
[1725043428579,0.39497,2532.2,2532.0,0.39823066]
[1725043428777,0.39496,2532.3,2531.9,0.79021]
[1725043429072,0.39496,2532.3,2532.0,0.395]
[1725043429277,3.2078,2532.4,2532.1,0.39498]
[1725043429473,3.2078,2532.4,2532.0,0.39824445]
[1725043429795,3.2078,2532.4,2531.6,6.8478]
[1725043429796,0.9875,2532.0,2531.0,0.3952]
[1725043430078,3.2078,2531.2,2530.7,0.20027569]
[1725043430267,3.60298,2530.9,2530.7,0.20027569]
[1725043430475,3.60298,2530.9,2529.7,0.98838]
[1725043430476,0.39519,2530.8,2530.0,0.39842907]
[1725043430667,0.39519,2530.8,2530.0,0.79362907]
[1725043430668,0.39524,2530.5,2530.0,0.79362907]
[1725043430869,3.2078,2530.1,2530.0,0.3952]
[1725043431077,3.2078,2530.2,2530.0,0.3952]
[1725043431267,3.2078,2530.2,2529.4,4.946]
[1725043431464,3.2078,2530.2,2529.9,0.39532]
[1725043431779,0.39524,2530.5,2529.7,4.55]
[1725043431780,2.3072,2530.8,2530.0,8.5028]
[1725043432071,3.2078,2530.9,2530.4,0.39524]
[1725043432263,3.60298,2530.9,2530.3,4.55]
[1725043432470,3.60298,2530.9,2530.2,0.39527]
[1725043432675,3.60298,2530.9,2530.3,0.39526]
[1725043432676,3.2078,2530.9,2530.3,0.39526]
[1725043432872,3.2078,2530.9,2530.4,0.39525]
[1725043433066,3.2078,2530.9,2530.5,0.39523]
[1725043433266,3.2078,2530.9,2530.3,7.7578]
[1725043433675,3.2078,2530.9,2530.6,4.55]
[1725043433874,3.2078,2530.9,2530.6,4.94521]
[1725043434062,0.00592347,2531.2,2530.6,4.94521]
[1725043434269,0.39515,2531.1,2530.6,4.55]
[1725043434474,3.2078,2530.7,2530.4,4.4869]
[1725043434777,3.2078,2530.7,2530.3,8.153]
[1725043436071,3.603,2530.7,2530.3,8.153]
[1725043436378,0.39523,2530.6,2530.3,3.2078]
[1725043436578,7.1598,2530.7,2530.3,3.2078]
[1725043436776,0.39522,2530.6,2530.3,3.2078]
[1725043437183,3.2078,2530.7,2530.3,3.2078]
[1725043437780,3.2078,2530.7,2530.3,3.60306]
[1725043437976,3.2078,2530.8,2530.6,0.39521]
[1725043438174,3.2078,2530.8,2530.7,0.3952]
[1725043438370,0.00592347,2531.2,2530.6,0.98805]
[1725043438576,0.40105347,2531.2,2530.7,0.3952]
[1725043438779,3.2078,2531.0,2530.6,2.2541]
[1725043439177,3.2078,2531.0,2530.7,0.3952]
[1725043439375,3.2078,2531.0,2530.6,2.2541]
[1725043439784,3.2078,2531.0,2530.9,0.39517]
[1725043440082,3.2078,2531.0,2530.9,0.39516]
[1725043440284,3.2078,2531.0,2530.6,4.4409]
[1725043440485,3.2078,2531.0,2530.9,0.39517]
[1725043440977,0.00592347,2531.2,2531.1,0.39514]
[1725043441278,0.00592347,2531.2,2531.1,4.94514]
[1725043441486,0.00592347,2531.2,2531.1,8.89554]
[1725043442488,3.2078,2531.9,2531.1,15.48826]
[1725043442688,3.2078,2531.9,2531.7,4.55]
[1725043443186,3.2078,2531.9,2531.7,4.94503]
[1725043443386,3.2078,2531.9,2531.8,0.39503]
[1725043443679,4.55,2533.1,2531.8,0.3952]
[1725043443680,0.00592347,2532.1,2531.8,0.3952]
[1725043444384,3.21372347,2532.1,2531.8,0.3952]
[1725043444584,3.21372347,2532.1,2531.8,0.79022]
[1725043445497,0.00592347,2532.1,2532.0,4.945]
[1725043445977,0.00592347,2532.1,2532.0,18.1024]
[1725043446177,0.00592347,2532.1,2532.0,14.8946]
[1725043446378,0.00592347,2532.1,2532.0,15.8821]
[1725043446582,3.2078,2533.0,2532.5,0.39492]
[1725043446788,3.2078,2533.0,2532.6,0.3949]
[1725043446984,3.2078,2533.0,2532.5,4.55]
[1725043447285,3.2078,2532.7,2532.0,3.2078]
[1725043447492,3.2078,2532.7,2529.8,3.94960485]
[1725043447493,3.2078,2532.4,2531.6,4.9452]
[1725043447681,3.2078,2532.1,2531.6,5.34025]
[1725043447896,3.2078,2532.1,2531.8,4.55]
[1725043448186,3.2078,2532.1,2532.0,0.395]
[1725043448481,3.2078,2532.1,2531.8,4.55]
[1725043448875,3.2078,2532.4,2532.0,0.395]
[1725043449181,0.39496,2532.3,2531.8,4.94502]
[1725043449379,3.60278,2532.1,2531.6,4.9452]
[1725043449590,3.2078,2532.4,2531.6,4.9452]
[1725043449895,3.2078,2532.4,2531.9,4.55]
[1725043450187,0.00592347,2532.6,2532.4,0.39493]
[1725043450378,0.00592347,2532.6,2532.3,0.39494]
[1725043450691,0.00592347,2532.6,2532.4,0.39494]
[1725043450986,3.2078,2532.5,2532.3,0.39495]
[1725043451181,0.00592347,2532.6,2532.5,0.39492]
[1725043451683,0.00592347,2532.6,2532.3,2.2062]
[1725043451885,0.00592347,2532.6,2532.5,0.39492]
[1725043452393,0.00592347,2532.6,2532.4,0.39493]
[1725043452585,0.00592347,2532.6,2532.3,2.2062]
[1725043452885,0.00592347,2532.6,2532.4,4.94493]
[1725043453478,0.00592347,2532.6,2532.3,2.2062]
[1725043453479,0.00592347,2532.6,2532.3,2.60114]
[1725043453684,0.00592347,2532.6,2532.3,0.39494]
[1725043453887,0.00592347,2532.6,2532.4,0.39493]
[1725043454096,0.98731,2532.5,2532.1,7.7578]
[1725043454299,3.60277,2532.2,2531.8,4.94503]
[1725043454491,0.39498,2532.2,2531.8,4.55]
[1725043454795,3.2078,2532.2,2531.8,4.55]
[1725043454982,0.39501,2532.0,2531.8,4.55]
[1725043455180,0.39501,2531.9,2531.8,4.55]
[1725043455384,0.39501,2532.0,2531.8,4.55]
[1725043456395,4.19525,2532.2,2531.8,4.55]
[1725043456396,0.39499,2532.1,2531.8,4.94503]
[1725043456595,3.22502,2532.5,2531.8,4.94503]
[1725043456596,3.2078,2532.3,2531.8,4.55]
[1725043456898,2.2377,2532.5,2531.8,4.94502]
[1725043456899,3.60277,2532.2,2531.8,4.94502]
[1725043457285,3.2078,2532.2,2531.8,4.55]
[1725043457480,3.60278,2532.2,2531.8,4.94502]
[1725043458081,0.39498,2532.2,2531.8,4.94502]
[1725043458394,3.2078,2532.1,2531.8,4.94502]
[1725043458585,3.2078,2532.1,2532.0,0.395]
[1725043458788,2.2377,2532.5,2531.8,5.53757]
[1725043459084,0.00592347,2532.6,2532.2,0.39496]
[1725043459289,0.40084347,2532.6,2532.2,0.39496]
[1725043459488,0.00592347,2532.6,2532.3,0.39495]
[1725043459683,0.40083347,2532.6,2532.2,0.39496]
[1725043459989,0.00592347,2532.6,2532.1,4.55]
[1725043460594,3.2078,2533.6,2532.5,4.19511]
[1725043460795,3.60256,2533.6,2533.1,0.39482]
[1725043461100,3.2078,2533.3,2532.9,4.94485]
[1725043461688,3.2078,2533.3,2533.0,0.39484]
[1725043461884,3.2078,2533.3,2532.9,4.94485]
[1725043462092,3.2078,2533.3,2532.9,4.55]
[1725043462395,3.2078,2533.3,2533.0,0.39484]
[1725043462785,3.2078,2533.3,2533.1,0.39483]
[1725043462992,3.2078,2533.3,2533.0,0.39483]
[1725043463295,3.2078,2533.3,2533.1,0.39483]
[1725043463594,3.9472,2533.2,2532.8,0.00592347]
[1725043463802,3.2078,2533.0,2532.8,0.00592347]
[1725043463995,3.2078,2532.9,2532.8,0.00592347]
[1725043464493,4.34286,2532.9,2532.8,0.00592347]
[1725043465291,11.33001,2532.9,2532.8,0.00592347]
[1725043465898,10.34286,2532.9,2532.1,3.2078]
[1725043466202,0.39491,2532.6,2532.1,3.60278]
[1725043466494,3.2078,2532.7,2532.1,3.60278]
[1725043466495,0.39492,2532.5,2532.1,3.60278]
[1725043466689,0.39494,2532.4,2532.1,3.60278]
[1725043467589,0.39494,2532.4,2532.1,3.2078]
[1725043467787,3.6027,2532.7,2532.3,0.39494]
[1725043467987,7.1566,2532.7,2532.1,3.2078]
[1725043468194,2.1299,2533.0,2532.4,3.2078]
[1725043468495,2.1299,2533.0,2532.8,0.39487]
[1725043468496,3.2078,2532.9,2532.8,0.39487]
[1725043468692,2.3336,2533.2,2532.6,4.55]
[1725043468893,3.2078,2533.1,2533.0,0.39484]
[1725043469291,0.3948,2533.3,2532.9,0.39485]
[1725043469493,3.2078,2533.1,2532.9,0.39485]
[1725043469692,3.2078,2533.1,2532.6,4.55]
[1725043469990,3.2078,2533.1,2532.7,0.39489]
[1725043470195,0.3949,2532.7,2532.3,4.94495]
[1725043470498,3.60265,2533.0,2532.6,0.3949]
[1725043470794,0.00592347,2533.4,2532.6,4.55]
[1725043471091,0.00592347,2533.4,2532.7,0.39488]
[1725043471092,0.39483,2533.1,2532.7,0.39488]
[1725043471490,3.2078,2532.8,2532.6,0.39489]
[1725043471697,0.39483,2533.1,2532.7,0.39489]
[1725043471993,3.2078,2533.0,2532.8,0.39487]
[1725043472184,3.2078,2533.0,2532.7,0.39488]
[1725043472386,3.2078,2533.0,2532.3,7.7578]
[1725043472689,0.00592347,2533.4,2533.2,0.39481]
[1725043472891,3.2078,2533.3,2533.2,0.39481]
[1725043473291,0.00592347,2533.4,2533.3,0.3948]
[1725043473788,0.00592347,2533.4,2532.9,11.02944]
[1725043473789,0.00592347,2533.4,2533.1,0.39482]
[1725043473998,3.2078,2533.3,2533.2,0.39481]
[1725043474195,0.00592347,2533.4,2533.2,0.3948]
[1725043474605,0.00592347,2533.4,2533.1,0.39482]
[1725043474802,0.00592347,2533.4,2533.2,0.39481]
[1725043475209,0.00592347,2533.4,2533.1,0.39481]
[1725043475398,0.00592347,2533.4,2533.0,0.3952]
[1725043475695,0.00592347,2533.4,2533.2,0.39481]
[1725043476105,0.00592347,2533.4,2533.3,0.3948]
[1725043477505,4.34790347,2533.4,2533.0,0.3952]
[1725043477691,0.00592347,2533.4,2533.2,0.3948]
[1725043477890,0.00592347,2533.4,2533.3,0.3948]
[1725043478991,0.40071347,2533.4,2532.9,5.4923]
[1725043479196,0.00592347,2533.4,2532.9,5.4923]
[1725043479400,0.40070347,2533.4,2533.1,0.39481]
[1725043479590,0.00592347,2533.4,2533.2,0.39481]
[1725043480203,0.40071347,2533.4,2533.1,0.39482]
[1725043480404,3.2078,2533.3,2532.9,5.4923]
[1725043480796,3.2078,2533.3,2533.2,0.39481]
[1725043481196,0.00592347,2533.4,2533.3,0.3948]
[1725043484199,0.00592347,2533.4,2533.2,0.3948]
[1725043484597,0.00592347,2533.4,2533.3,0.3948]
[1725043484790,0.00592347,2533.4,2533.2,0.3948]
[1725043485493,0.00592347,2533.4,2533.3,0.3948]
[1725043485690,0.00592347,2533.4,2533.2,0.3948]
[1725043486003,0.00592347,2533.4,2533.0,0.98712]
[1725043486208,0.00592347,2533.4,2533.3,0.3948]
[1725043486700,0.00592347,2533.4,2533.3,4.342]
[1725043486905,0.00592347,2533.4,2533.3,5.329]
[1725043487093,0.00592347,2533.4,2533.3,11.329]
[1725043487408,0.00592347,2533.4,2533.3,10.74003367]
[1725043487601,0.00592347,2533.4,2533.3,4.74003367]
[1725043488403,0.00592347,2533.4,2533.3,5.72703367]
[1725043489805,0.00592347,2533.4,2533.3,5.88497794]
[1725043490011,0.00592347,2533.4,2533.3,5.88494387]
[1725043491203,3.2078,2534.4,2534.1,0.39466]
[1725043491404,3.2078,2534.4,2534.0,4.55]
[1725043491712,3.2078,2534.7,2534.4,0.39462]
[1725043492004,0.00592347,2534.8,2534.4,0.39462]
[1725043492311,3.2078,2534.7,2534.4,0.39462]
[1725043492801,3.2078,2534.7,2534.3,0.40055347]
[1725043492993,3.60238,2534.7,2534.3,0.40055347]
[1725043493195,3.2078,2534.7,2534.4,0.39462]
[1725043493595,3.2078,2534.7,2534.3,0.40055347]
[1725043493896,3.2078,2534.7,2534.4,0.39462]
[1725043494094,0.40050347,2534.8,2534.4,0.39462]
[1725043494298,3.21372347,2534.8,2534.5,0.39461]
[1725043494499,3.60829347,2534.8,2534.4,0.39462]
[1725043494801,0.40050347,2534.8,2534.4,0.39462]
[1725043495099,0.40050347,2534.8,2534.6,0.39459]
[1725043495100,0.00592347,2534.8,2534.6,0.39459]
[1725043495295,3.21372347,2534.8,2534.6,0.39459]
[1725043495496,0.00592347,2534.8,2534.3,0.40112347]
[1725043495696,3.21372347,2534.8,2534.3,0.40112347]
[1725043495905,3.21372347,2534.8,2534.7,0.39458]
[1725043496096,0.00592347,2534.8,2534.7,0.39458]
[1725043496503,0.00592347,2534.8,2534.5,4.55]
[1725043496899,0.00592347,2534.8,2534.7,0.39458]
[1725043497098,0.00592347,2534.8,2534.6,0.39458]
[1725043497306,0.00592347,2534.8,2534.7,0.39458]
[1725043497506,0.00592347,2534.8,2534.6,0.39458]
[1725043497900,0.00592347,2534.8,2534.7,0.39458]
[1725043498395,0.00592347,2534.8,2534.5,4.55]
[1725043498396,0.00592347,2534.8,2534.6,0.39458]
[1725043498600,0.00592347,2534.8,2534.7,0.39458]
[1725043500403,0.00592347,2534.8,2534.7,5.32583]
[1725043500599,3.2078,2536.0,2534.7,14.4948]
[1725043500805,3.2078,2536.0,2535.9,4.55]
[1725043501399,4.2987,2536.3,2535.9,4.55]
[1725043501601,3.2078,2536.2,2535.9,4.55]